{"text_format":"1","workbook":"xlsx","n_sheets":3,"sheets":["Instruccions","Reformulació Pressupost Bb1","Resum Pressupost"],"not_rendered":{"charts":0,"images":5,"macros":1,"external_links":0,"defined_names":8,"comments":2,"pivot_tables":0},"unopened":[],"bounds":{"document_bytes":16777216,"sheet_cells":100000,"rows_first":2000,"rows_last":500,"rows_between":2000,"halvings":0,"cell_chars":16384,"cell_head_chars":4096},"cells_cut":0,"cells_raw":0,"read":"whole","date_system":"1900"}

{"sheet":"Instruccions","index":0,"n_rows":24,"n_cols":10,"rows_kept":24,"cut":false,"hidden":false,"merged":[[22,1,22,16],[23,1,23,16],[1,9,1,11],[2,2,2,17],[4,2,4,17]]}
[]
[null,null,null,null,null,null,null,null,null,"Doc_basic3_pressup_reformulat_Bb1 INSTRUCCIONS"]
[null,null,"SUBVENCIONS DE L’AJUNTAMENT DE BARCELONA PER L’ENFORTIMENT DE L’ECONOMIA SOCIAL I SOLIDÀRIA I PER LA INTERCOOPERACIÓ EN L’ESTRATÈGIA #ESSBCN2030 - ENFORTIM L’ESS 2023"]
[]
[null,null,"Aspectes rellevants relacionats amb la reformulació"]
[]
[]
[]
[]
[null,"1. Emplenar la pestanya  \"Reformulació Pressupost\" amb les dades econòmiques del projecte:"]
[null,"1.1  Emplenar els quadres DADES BÀSIQUES-PREVISIÓ DE DESPESES DEL PROJECTE SUBVENCIONABLE INICIAL, amb les dades econòmiques de la proposta inicial amb subvenció atorgada."]
[null,"1.2  Emplenar els quadres DADES BÀSIQUES-PREVISIÓ DE DESPESES DEL PROJECTE REFORMULAT, amb les dades econòmiques de la proposta de reformulació."]
[null,"2. Revisar i emplenar la pestanya  \"Resum Pressupost\" amb les dades econòmiques del projecte:"]
[null,"3. Imprimir els fulls de les 2 pestanyes (Reformulació pressupost i Resum Pressupost). En format pdf."]
[]
[]
[]
[null,"Clica la icona per generar un document PDF del llibre"]
[]
[]
[]
[]
[null,"4. Si la sol·licitud es va presentar per via telemàtica, cal que registreu la documentació, telemàticament, com a tràmit específic, dins la convocatòria específica com annexió de documents addicionals i feu servir el mateix certificat digital i número de tràmit que el sistema de registre us va donar en la presentació de la sol·licitud inicial de la subvenció."]
[null,"5. En el cas que canvieu de certificat digital per caducitat o per canvi de persona responsable legal, si us plau, escriviu a l'adreça de correu electrònica: subvencions_ec_solidaria@bcn.cat, per tal d'informar-nos i donar-vos instruccions per fer un altre tràmit telemàtic i poder fer el seguiment de la documentació registrada, així com també en el cas que registreu la documentació a través d'una Oficina d'Atenció Ciutadana de l'Ajuntament (només en el cas de ser una persona física)"]

{"sheet":"Reformulació Pressupost Bb1","index":1,"n_rows":141,"n_cols":10,"rows_kept":141,"cut":false,"hidden":false,"merged":[[112,2,112,3],[3,0,4,8],[1,1,1,8],[18,0,18,3],[10,6,10,7],[18,6,18,8],[6,2,6,5],[120,0,120,3],[121,0,121,3],[122,0,122,3],[115,0,115,3],[118,0,118,3],[119,0,119,3],[123,0,123,3],[124,0,124,3],[125,0,125,3],[126,0,126,3],[127,0,127,3],[128,0,128,3],[129,0,129,3],[130,0,130,3],[131,0,131,3],[132,0,132,3],[138,0,138,3],[139,0,139,3],[140,0,140,3],[133,0,133,3],[134,0,134,3],[135,0,135,3],[136,0,136,3],[137,0,137,3]]}
[]
[null,"Reformulació pressupost Modalitat Bb1"]
[]
["Programa de subvencions de l'Ajuntament de Barcelona per a la reactivació i l'enfortiment de l'Economia Social i Solidària i el desenvolupament de projectes d'intercooperació que desenvolupen l'Estratègia #ESSBCN2030"]
[]
[]
[]
["DADES BÀSIQUES"]
["Nom de la persona jurídica",null,{"$f":"+IF(H9>Dadesbasiques[[#This Row],[Columna1]],\"ALERTA: La quantia de la subvenció atorgada no pot superar el 80% de la despesa total del projecte a subvencionar\", \" \")","v":" "},null,null,"  "]
["NIF de la persona jurídica",null,{"$f":"+IF(H10>Dadesbasiques[[#This Row],[Columna1]],\"ALERTA: La quantia de la subvenció atorgada no pot superar el 80% de la despesa total del projecte a subvencionar\", \" \")","v":" "}]
["Nom del projecte subvencionable",null,{"$f":"+IF(H11>Dadesbasiques[[#This Row],[Columna1]],\"ALERTA: La quantia de la subvenció atorgada no pot superar el 80% de la despesa total del projecte a subvencionar\", \" \")","v":" "},null,null,null,"DADES BÀSIQUES PROJECTE REFORMULAT"]
["Import total del projecte subvencionable",null,null,null,null,null,"Import total del projecte REFORMULAT"]
["Import imputable a la subvenció municipal",null,null,null,null,null,"Import imputable a la subvenció ATORGADA"]
["Import de l'aportació / Cofinançament de l'organització",{"$f":"+B12-B13","v":0},null,null,null,null,"Import de l'aportació / Cofinançament de l'organització",{"$f":"H12-H13","v":0}]
["% de l'import sol·licitat respecte el total del projecte subvencionable (*)",{"$f":"B13/B12","v":{"$error":"#DIV/0!"}},null,null,null,null,"% de l'import sol·licitat respecte el total del projecte subvencionat",{"$f":"H13/H12","v":{"$error":"#DIV/0!"}},{"$f":"+IF(H15>Dadesbasiques[[#This Row],[Columna1]],\"*Aquest percentatge ha de ser igual o menor al percentatge subvencionat inicialment.\",\" \")","v":{"$error":"#DIV/0!"}}]
["Data inici del projecte subvencionat (dd/mm/aaaa)",null,{"$f":"+IF(H16>Dadesbasiques[[#This Row],[Columna1]],\"ALERTA: La quantia de la subvenció atorgada no pot superar el 80% de la despesa total del projecte a subvencionar\", \" \")","v":" "}]
["Data fi del projecte subvencionat (dd/mm/aaaa)",null,{"$f":"+IF(H17>Dadesbasiques[[#This Row],[Columna1]],\"ALERTA: La quantia de la subvenció atorgada no pot superar el 80% de la despesa total del projecte a subvencionar\", \" \")","v":" "}]
[]
["PREVISIÓ DE DESPESES DEL PROJECTE SUBVENCIONABLE INICIAL",null,null,null,null,null,"PREVISIÓ DE DESPESES DEL PROJECTE REFORMULAT"]
[]
["Partides","Import imputable a la subvenció municipal","Import de l'aportació / Cofinançament de l'organització","Import total del projecte",null,null,"Import imputable a la subvenció municipal","Import de l'aportació / Cofinançament de l'organització","Import total del projecte"]
["D1. Retribucions i seguretat social (règim general o règim d’autònoms) del personal propi  vinculat/da al projecte (màxim 40% subvenció)",{"$f":"SUM(B23:B26)","v":0},{"$f":"SUM(C23:C26)","v":0},{"$f":"SUM(DespesesProjecte[[#This Row],[Import imputable a la subvenció municipal]],DespesesProjecte[[#This Row],[Import de l''aportació / Cofinançament de l''organització]])","v":0},null,null,{"$f":"SUM(G23:G26)","v":0},{"$f":"SUM(H23:H26)","v":0},{"$f":"+G22+H22","v":0}]
[null,null,null,{"$f":"SUM(DespesesProjecte[[#This Row],[Import imputable a la subvenció municipal]],DespesesProjecte[[#This Row],[Import de l''aportació / Cofinançament de l''organització]])","v":0},null,null,null,null,{"$f":"+G23+H23","v":0}]
[null,null,null,{"$f":"SUM(DespesesProjecte[[#This Row],[Import imputable a la subvenció municipal]],DespesesProjecte[[#This Row],[Import de l''aportació / Cofinançament de l''organització]])","v":0},null,null,null,null,0]
[null,null,null,{"$f":"SUM(DespesesProjecte[[#This Row],[Import imputable a la subvenció municipal]],DespesesProjecte[[#This Row],[Import de l''aportació / Cofinançament de l''organització]])","v":0},null,null,null,null,0]
[null,null,null,{"$f":"SUM(DespesesProjecte[[#This Row],[Import imputable a la subvenció municipal]],DespesesProjecte[[#This Row],[Import de l''aportació / Cofinançament de l''organització]])","v":0},null,null,null,null,0]
["TOTAL DE DESPESES DEL PERSONAL\nMàxim 40% de l'import imputable a la subvenció municipal si es tracta de personal propi assignat directament al projecte subvencionat",{"$f":"B22","v":0},{"$f":"C22","v":0},{"$f":"D22","v":0},null,null,{"$f":"G22","v":0},{"$f":"H22","v":0},{"$f":"I22","v":0},{"$f":"+IF(G22>H13*0.4,\"ALERTA: Màxim 40% de l'import imputable a la subvenció municipal\", \" \")","v":" "}]
["D2.  Treballs realitzats per professionals i empreses externes directament vinculades al projecte",{"$f":"SUM(B29:B31)","v":0},{"$f":"SUM(C29:C31)","v":0},{"$f":"SUM(DespesesProjecte[[#This Row],[Import imputable a la subvenció municipal]],DespesesProjecte[[#This Row],[Import de l''aportació / Cofinançament de l''organització]])","v":0},null,null,{"$f":"SUM(G29:G31)","v":0},{"$f":"SUM(H29:H31)","v":0},{"$f":"+G28+H28","v":0}]
[null,null,null,{"$f":"SUM(DespesesProjecte[[#This Row],[Import imputable a la subvenció municipal]],DespesesProjecte[[#This Row],[Import de l''aportació / Cofinançament de l''organització]])","v":0},null,null,null,null,{"$f":"+G29+H29","v":0}]
[null,null,null,{"$f":"SUM(DespesesProjecte[[#This Row],[Import imputable a la subvenció municipal]],DespesesProjecte[[#This Row],[Import de l''aportació / Cofinançament de l''organització]])","v":0},null,null,null,null,0]
[null,null,null,{"$f":"SUM(DespesesProjecte[[#This Row],[Import imputable a la subvenció municipal]],DespesesProjecte[[#This Row],[Import de l''aportació / Cofinançament de l''organització]])","v":0},null,null,null,null,0]
["D3.   Lloguer de béns mobles/ immobles directament vinculats al projecte (màxim 25% subvenció en cas d'immobles per a un nou espai físic necessari)",{"$f":"SUM(B33:B35)","v":0},{"$f":"SUM(C33:C35)","v":0},{"$f":"SUM(DespesesProjecte[[#This Row],[Import imputable a la subvenció municipal]],DespesesProjecte[[#This Row],[Import de l''aportació / Cofinançament de l''organització]])","v":0},null,null,{"$f":"SUM(G33:G35)","v":0},{"$f":"SUM(H33:H35)","v":0},0,{"$f":"+IF(G32>H13*0.25,\"ALERTA: Màxim 25% de l'import imputable a la subvenció municipal\", \" \")","v":" "}]
[null,null,null,{"$f":"SUM(DespesesProjecte[[#This Row],[Import imputable a la subvenció municipal]],DespesesProjecte[[#This Row],[Import de l''aportació / Cofinançament de l''organització]])","v":0},null,null,null,null,0]
[null,null,null,{"$f":"SUM(DespesesProjecte[[#This Row],[Import imputable a la subvenció municipal]],DespesesProjecte[[#This Row],[Import de l''aportació / Cofinançament de l''organització]])","v":0},null,null,null,null,0]
[null,null,null,{"$f":"SUM(DespesesProjecte[[#This Row],[Import imputable a la subvenció municipal]],DespesesProjecte[[#This Row],[Import de l''aportació / Cofinançament de l''organització]])","v":0},null,null,null,null,0]
["D4. Adquisició de materials i béns consumibles íntegrament imputables al projecte ",{"$f":"SUM(B37:B39)","v":0},{"$f":"SUM(C37:C39)","v":0},{"$f":"SUM(DespesesProjecte[[#This Row],[Import imputable a la subvenció municipal]],DespesesProjecte[[#This Row],[Import de l''aportació / Cofinançament de l''organització]])","v":0},null,null,{"$f":"SUM(G37:G39)","v":0},{"$f":"SUM(H37:H39)","v":0},0]
[null,null,null,{"$f":"SUM(DespesesProjecte[[#This Row],[Import imputable a la subvenció municipal]],DespesesProjecte[[#This Row],[Import de l''aportació / Cofinançament de l''organització]])","v":0},null,null,null,null,0]
[null,null,null,{"$f":"SUM(DespesesProjecte[[#This Row],[Import imputable a la subvenció municipal]],DespesesProjecte[[#This Row],[Import de l''aportació / Cofinançament de l''organització]])","v":0},null,null,null,null,0]
[null,null,null,{"$f":"SUM(DespesesProjecte[[#This Row],[Import imputable a la subvenció municipal]],DespesesProjecte[[#This Row],[Import de l''aportació / Cofinançament de l''organització]])","v":0},null,null,null,null,0]
["D5.  Transport – missatgeria imputables al projecte",{"$f":"SUM(B41:B43)","v":0},{"$f":"SUM(C41:C43)","v":0},{"$f":"DespesesProjecte[[#This Row],[Import imputable a la subvenció municipal]]+DespesesProjecte[[#This Row],[Import de l''aportació / Cofinançament de l''organització]]","v":0},null,null,{"$f":"SUM(G41:G43)","v":0},{"$f":"SUM(H41:H43)","v":0},0]
[null,null,null,{"$f":"SUM(DespesesProjecte[[#This Row],[Import imputable a la subvenció municipal]],DespesesProjecte[[#This Row],[Import de l''aportació / Cofinançament de l''organització]])","v":0},null,null,null,null,0]
[null,null,null,{"$f":"SUM(DespesesProjecte[[#This Row],[Import imputable a la subvenció municipal]],DespesesProjecte[[#This Row],[Import de l''aportació / Cofinançament de l''organització]])","v":0},null,null,null,null,0]
[null,null,null,{"$f":"SUM(DespesesProjecte[[#This Row],[Import imputable a la subvenció municipal]],DespesesProjecte[[#This Row],[Import de l''aportació / Cofinançament de l''organització]])","v":0},null,null,null,null,0]
["D6.  Publicitat i propaganda de les activitats directament vinculades al projecte",{"$f":"SUM(B45:B47)","v":0},{"$f":"SUM(C45:C47)","v":0},{"$f":"SUM(DespesesProjecte[[#This Row],[Import imputable a la subvenció municipal]],DespesesProjecte[[#This Row],[Import de l''aportació / Cofinançament de l''organització]])","v":0},null,null,{"$f":"SUM(G45:G47)","v":0},{"$f":"SUM(H45:H47)","v":0},0]
[null,null,null,{"$f":"SUM(DespesesProjecte[[#This Row],[Import imputable a la subvenció municipal]],DespesesProjecte[[#This Row],[Import de l''aportació / Cofinançament de l''organització]])","v":0},null,null,null,null,0]
[null,null,null,{"$f":"SUM(DespesesProjecte[[#This Row],[Import imputable a la subvenció municipal]],DespesesProjecte[[#This Row],[Import de l''aportació / Cofinançament de l''organització]])","v":0},null,null,null,null,0]
[null,null,null,{"$f":"SUM(DespesesProjecte[[#This Row],[Import imputable a la subvenció municipal]],DespesesProjecte[[#This Row],[Import de l''aportació / Cofinançament de l''organització]])","v":0},null,null,null,null,0]
["D7.   Allotjament i dietes, del personal contractat i voluntari, vinculats al projecte",{"$f":"SUM(B49:B51)","v":0},{"$f":"SUM(C49:C51)","v":0},{"$f":"SUM(DespesesProjecte[[#This Row],[Import imputable a la subvenció municipal]],DespesesProjecte[[#This Row],[Import de l''aportació / Cofinançament de l''organització]])","v":0},null,null,{"$f":"SUM(G49:G51)","v":0},{"$f":"SUM(H49:H51)","v":0},0]
[null,null,null,{"$f":"SUM(DespesesProjecte[[#This Row],[Import imputable a la subvenció municipal]],DespesesProjecte[[#This Row],[Import de l''aportació / Cofinançament de l''organització]])","v":0},null,null,null,null,0]
[null,null,null,{"$f":"SUM(DespesesProjecte[[#This Row],[Import imputable a la subvenció municipal]],DespesesProjecte[[#This Row],[Import de l''aportació / Cofinançament de l''organització]])","v":0},null,null,null,null,0]
[null,null,null,{"$f":"SUM(DespesesProjecte[[#This Row],[Import imputable a la subvenció municipal]],DespesesProjecte[[#This Row],[Import de l''aportació / Cofinançament de l''organització]])","v":0},null,null,null,null,0]
["D8.  Ajuts al transport per als/les participants dels projectes en cas que sigui necessari de manera justificada",{"$f":"SUM(B53:B55)","v":0},{"$f":"SUM(C53:C55)","v":0},{"$f":"SUM(DespesesProjecte[[#This Row],[Import imputable a la subvenció municipal]],DespesesProjecte[[#This Row],[Import de l''aportació / Cofinançament de l''organització]])","v":0},null,null,{"$f":"SUM(G53:G55)","v":0},{"$f":"SUM(H53:H55)","v":0},0]
[null,null,null,{"$f":"SUM(DespesesProjecte[[#This Row],[Import imputable a la subvenció municipal]],DespesesProjecte[[#This Row],[Import de l''aportació / Cofinançament de l''organització]])","v":0},null,null,null,null,0]
[null,null,null,{"$f":"SUM(DespesesProjecte[[#This Row],[Import imputable a la subvenció municipal]],DespesesProjecte[[#This Row],[Import de l''aportació / Cofinançament de l''organització]])","v":0},null,null,null,null,{"$f":"+G54+H54","v":0}]
[null,null,null,{"$f":"SUM(DespesesProjecte[[#This Row],[Import imputable a la subvenció municipal]],DespesesProjecte[[#This Row],[Import de l''aportació / Cofinançament de l''organització]])","v":0},null,null,null,null,0]
["D9.  Viatges i desplaçaments imputables a les activitats del projecte",{"$f":"SUM(B57:B59)","v":0},{"$f":"SUM(C57:C59)","v":0},{"$f":"DespesesProjecte[[#This Row],[Import imputable a la subvenció municipal]]+DespesesProjecte[[#This Row],[Import de l''aportació / Cofinançament de l''organització]]","v":0},null,null,{"$f":"SUM(G57:G59)","v":0},{"$f":"SUM(H57:H59)","v":0},0]
[null,null,null,{"$f":"SUM(DespesesProjecte[[#This Row],[Import imputable a la subvenció municipal]],DespesesProjecte[[#This Row],[Import de l''aportació / Cofinançament de l''organització]])","v":0},null,null,null,null,0]
[null,null,null,{"$f":"SUM(DespesesProjecte[[#This Row],[Import imputable a la subvenció municipal]],DespesesProjecte[[#This Row],[Import de l''aportació / Cofinançament de l''organització]])","v":0},null,null,null,null,0]
[null,null,null,{"$f":"SUM(DespesesProjecte[[#This Row],[Import imputable a la subvenció municipal]],DespesesProjecte[[#This Row],[Import de l''aportació / Cofinançament de l''organització]])","v":0},null,null,null,null,0]
["D10.  Tributs, quan siguin abonats directament per la persona jurídica o física beneficiària",{"$f":"SUM(B61:B63)","v":0},{"$f":"SUM(C61:C63)","v":0},{"$f":"DespesesProjecte[[#This Row],[Import imputable a la subvenció municipal]]+DespesesProjecte[[#This Row],[Import de l''aportació / Cofinançament de l''organització]]","v":0},null,null,{"$f":"SUM(G61:G63)","v":0},{"$f":"SUM(H61:H63)","v":0},0]
[null,null,null,{"$f":"SUM(DespesesProjecte[[#This Row],[Import imputable a la subvenció municipal]],DespesesProjecte[[#This Row],[Import de l''aportació / Cofinançament de l''organització]])","v":0},null,null,null,null,0]
[null,null,null,{"$f":"SUM(DespesesProjecte[[#This Row],[Import imputable a la subvenció municipal]],DespesesProjecte[[#This Row],[Import de l''aportació / Cofinançament de l''organització]])","v":0},null,null,null,null,0]
[null,null,null,{"$f":"SUM(DespesesProjecte[[#This Row],[Import imputable a la subvenció municipal]],DespesesProjecte[[#This Row],[Import de l''aportació / Cofinançament de l''organització]])","v":0},null,null,null,null,0]
["D11. Altres despeses que de manera justificada i per la tipologia del projecte puguin imputar-se directament al projecte",{"$f":"SUM(B65:B67)","v":0},{"$f":"SUM(C65:C67)","v":0},{"$f":"DespesesProjecte[[#This Row],[Import imputable a la subvenció municipal]]+DespesesProjecte[[#This Row],[Import de l''aportació / Cofinançament de l''organització]]","v":0},null,null,{"$f":"SUM(G65:G67)","v":0},{"$f":"SUM(H65:H67)","v":0},0]
[null,null,null,{"$f":"SUM(DespesesProjecte[[#This Row],[Import imputable a la subvenció municipal]],DespesesProjecte[[#This Row],[Import de l''aportació / Cofinançament de l''organització]])","v":0},null,null,null,null,0]
[null,null,null,{"$f":"SUM(DespesesProjecte[[#This Row],[Import imputable a la subvenció municipal]],DespesesProjecte[[#This Row],[Import de l''aportació / Cofinançament de l''organització]])","v":0},null,null,null,null,0]
[null,null,null,{"$f":"SUM(DespesesProjecte[[#This Row],[Import imputable a la subvenció municipal]],DespesesProjecte[[#This Row],[Import de l''aportació / Cofinançament de l''organització]])","v":0},null,null,null,null,0]
["TOTAL D'ALTRES DESPESES DIRECTES",{"$f":"B28+B32+B36+B40+B44+B48+B52+B56+B60+B64","v":0},{"$f":"C28+C32+C36+C40+C44+C48+C52+C56+C60+C64","v":0},{"$f":"D28+D32+D36+D40+D44+D48+D52+D56+D60+D64","v":0},null,null,{"$f":"G28+G32+G36+G40+G44+G48+G52+G56+G60+G64","v":0},{"$f":"H28+H32+H36+H40+H44+H48+H52+H56+H60+H64","v":0},{"$f":"I28+I32+I36+I40+I44+I48+I52+I56+I60+I64","v":0}]
["TOTAL DESPESES DIRECTES (aquelles que s’identifiquen directament amb el projecte subvencionable)",{"$f":"B27+B68","v":0},{"$f":"C27+C68","v":0},{"$f":"D27+D68","v":0},null,null,{"$f":"G27+G68","v":0},{"$f":"H27+H68","v":0},{"$f":"I27+I68","v":0}]
["I1. Personal de suport al projecte (nòmines i seguretat social)",{"$f":"SUM(B71:B73)","v":0},{"$f":"SUM(C71:C73)","v":0},{"$f":"SUM(DespesesProjecte[[#This Row],[Import imputable a la subvenció municipal]],DespesesProjecte[[#This Row],[Import de l''aportació / Cofinançament de l''organització]])","v":0},null,null,{"$f":"SUM(G71:G73)","v":0},{"$f":"SUM(H71:H73)","v":0},{"$f":"+G70+H70","v":0}]
[null,null,null,{"$f":"SUM(DespesesProjecte[[#This Row],[Import imputable a la subvenció municipal]],DespesesProjecte[[#This Row],[Import de l''aportació / Cofinançament de l''organització]])","v":0},null,null,null,null,{"$f":"+G71+H71","v":0}]
[null,null,null,{"$f":"SUM(DespesesProjecte[[#This Row],[Import imputable a la subvenció municipal]],DespesesProjecte[[#This Row],[Import de l''aportació / Cofinançament de l''organització]])","v":0},null,null,null,null,0]
[null,null,null,{"$f":"SUM(DespesesProjecte[[#This Row],[Import imputable a la subvenció municipal]],DespesesProjecte[[#This Row],[Import de l''aportació / Cofinançament de l''organització]])","v":0},null,null,null,null,0]
["I2.  Assegurances",{"$f":"SUM(B75:B77)","v":0},{"$f":"SUM(C75:C77)","v":0},{"$f":"SUM(DespesesProjecte[[#This Row],[Import imputable a la subvenció municipal]],DespesesProjecte[[#This Row],[Import de l''aportació / Cofinançament de l''organització]])","v":0},null,null,{"$f":"SUM(G75:G77)","v":0},{"$f":"SUM(H75:H77)","v":0},0]
[null,null,null,{"$f":"SUM(DespesesProjecte[[#This Row],[Import imputable a la subvenció municipal]],DespesesProjecte[[#This Row],[Import de l''aportació / Cofinançament de l''organització]])","v":0},null,null,null,null,0]
[null,null,null,{"$f":"SUM(DespesesProjecte[[#This Row],[Import imputable a la subvenció municipal]],DespesesProjecte[[#This Row],[Import de l''aportació / Cofinançament de l''organització]])","v":0},null,null,null,null,0]
[null,null,null,{"$f":"SUM(DespesesProjecte[[#This Row],[Import imputable a la subvenció municipal]],DespesesProjecte[[#This Row],[Import de l''aportació / Cofinançament de l''organització]])","v":0},null,null,null,null,0]
["I3.  Amortització",{"$f":"SUM(B79:B81)","v":0},{"$f":"SUM(C79:C81)","v":0},{"$f":"SUM(DespesesProjecte[[#This Row],[Import imputable a la subvenció municipal]],DespesesProjecte[[#This Row],[Import de l''aportació / Cofinançament de l''organització]])","v":0},null,null,{"$f":"SUM(G79:G81)","v":0},{"$f":"SUM(H79:H81)","v":0},0]
[null,null,null,{"$f":"SUM(DespesesProjecte[[#This Row],[Import imputable a la subvenció municipal]],DespesesProjecte[[#This Row],[Import de l''aportació / Cofinançament de l''organització]])","v":0},null,null,null,null,0]
[null,null,null,{"$f":"SUM(DespesesProjecte[[#This Row],[Import imputable a la subvenció municipal]],DespesesProjecte[[#This Row],[Import de l''aportació / Cofinançament de l''organització]])","v":0},null,null,null,null,0]
[null,null,null,{"$f":"SUM(DespesesProjecte[[#This Row],[Import imputable a la subvenció municipal]],DespesesProjecte[[#This Row],[Import de l''aportació / Cofinançament de l''organització]])","v":0},null,null,null,null,0]
["I4.  Lloguer de béns immobles",{"$f":"SUM(B83:B85)","v":0},{"$f":"SUM(C83:C85)","v":0},{"$f":"SUM(DespesesProjecte[[#This Row],[Import imputable a la subvenció municipal]],DespesesProjecte[[#This Row],[Import de l''aportació / Cofinançament de l''organització]])","v":0},null,null,{"$f":"SUM(G83:G85)","v":0},{"$f":"SUM(H83:H85)","v":0},0]
[null,null,null,{"$f":"SUM(DespesesProjecte[[#This Row],[Import imputable a la subvenció municipal]],DespesesProjecte[[#This Row],[Import de l''aportació / Cofinançament de l''organització]])","v":0},null,null,null,null,0]
[null,null,null,{"$f":"SUM(DespesesProjecte[[#This Row],[Import imputable a la subvenció municipal]],DespesesProjecte[[#This Row],[Import de l''aportació / Cofinançament de l''organització]])","v":0},null,null,null,null,0]
[null,null,null,{"$f":"SUM(DespesesProjecte[[#This Row],[Import imputable a la subvenció municipal]],DespesesProjecte[[#This Row],[Import de l''aportació / Cofinançament de l''organització]])","v":0},null,null,null,null,0]
["I5.  Adquisició de materials i béns consumibles parcialment imputables al projecte",{"$f":"SUM(B87:B89)","v":0},{"$f":"SUM(C87:C89)","v":0},{"$f":"SUM(DespesesProjecte[[#This Row],[Import imputable a la subvenció municipal]],DespesesProjecte[[#This Row],[Import de l''aportació / Cofinançament de l''organització]])","v":0},null,null,{"$f":"SUM(G87:G89)","v":0},{"$f":"SUM(H87:H89)","v":0},0]
[null,null,null,{"$f":"SUM(DespesesProjecte[[#This Row],[Import imputable a la subvenció municipal]],DespesesProjecte[[#This Row],[Import de l''aportació / Cofinançament de l''organització]])","v":0},null,null,null,null,0]
[null,null,null,{"$f":"SUM(DespesesProjecte[[#This Row],[Import imputable a la subvenció municipal]],DespesesProjecte[[#This Row],[Import de l''aportació / Cofinançament de l''organització]])","v":0},null,null,null,null,0]
[null,null,null,{"$f":"SUM(DespesesProjecte[[#This Row],[Import imputable a la subvenció municipal]],DespesesProjecte[[#This Row],[Import de l''aportació / Cofinançament de l''organització]])","v":0},null,null,null,null,0]
["I6.  Manteniment d’edificis i/o instal·lacions",{"$f":"SUM(B91:B93)","v":0},{"$f":"SUM(C91:C93)","v":0},{"$f":"SUM(DespesesProjecte[[#This Row],[Import imputable a la subvenció municipal]],DespesesProjecte[[#This Row],[Import de l''aportació / Cofinançament de l''organització]])","v":0},null,null,{"$f":"SUM(G91:G93)","v":0},{"$f":"SUM(H91:H93)","v":0},0]
[null,null,null,{"$f":"SUM(DespesesProjecte[[#This Row],[Import imputable a la subvenció municipal]],DespesesProjecte[[#This Row],[Import de l''aportació / Cofinançament de l''organització]])","v":0},null,null,null,null,0]
[null,null,null,{"$f":"SUM(DespesesProjecte[[#This Row],[Import imputable a la subvenció municipal]],DespesesProjecte[[#This Row],[Import de l''aportació / Cofinançament de l''organització]])","v":0},null,null,null,null,0]
[null,null,null,{"$f":"SUM(DespesesProjecte[[#This Row],[Import imputable a la subvenció municipal]],DespesesProjecte[[#This Row],[Import de l''aportació / Cofinançament de l''organització]])","v":0},null,null,null,null,0]
["I7.  Comunicacions (telèfon, correus, connexió a internet)",{"$f":"SUM(B95:B97)","v":0},{"$f":"SUM(C95:C97)","v":0},{"$f":"SUM(DespesesProjecte[[#This Row],[Import imputable a la subvenció municipal]],DespesesProjecte[[#This Row],[Import de l''aportació / Cofinançament de l''organització]])","v":0},null,null,{"$f":"SUM(G95:G97)","v":0},{"$f":"SUM(H95:H97)","v":0},0]
[null,null,null,{"$f":"SUM(DespesesProjecte[[#This Row],[Import imputable a la subvenció municipal]],DespesesProjecte[[#This Row],[Import de l''aportació / Cofinançament de l''organització]])","v":0},null,null,null,null,0]
[null,null,null,{"$f":"SUM(DespesesProjecte[[#This Row],[Import imputable a la subvenció municipal]],DespesesProjecte[[#This Row],[Import de l''aportació / Cofinançament de l''organització]])","v":0},null,null,null,null,0]
[null,null,null,{"$f":"SUM(DespesesProjecte[[#This Row],[Import imputable a la subvenció municipal]],DespesesProjecte[[#This Row],[Import de l''aportació / Cofinançament de l''organització]])","v":0},null,null,null,null,0]
["I8.  Despeses financeres (despeses per transferències pagament factures/nòmines incloses a les despeses directes)",{"$f":"SUM(B99:B101)","v":0},{"$f":"SUM(C99:C101)","v":0},{"$f":"SUM(DespesesProjecte[[#This Row],[Import imputable a la subvenció municipal]],DespesesProjecte[[#This Row],[Import de l''aportació / Cofinançament de l''organització]])","v":0},null,null,{"$f":"SUM(G99:G101)","v":0},{"$f":"SUM(H99:H101)","v":0},0]
[null,null,null,{"$f":"SUM(DespesesProjecte[[#This Row],[Import imputable a la subvenció municipal]],DespesesProjecte[[#This Row],[Import de l''aportació / Cofinançament de l''organització]])","v":0},null,null,null,null,0]
[null,null,null,{"$f":"SUM(DespesesProjecte[[#This Row],[Import imputable a la subvenció municipal]],DespesesProjecte[[#This Row],[Import de l''aportació / Cofinançament de l''organització]])","v":0},null,null,null,null,0]
[null,null,null,{"$f":"SUM(DespesesProjecte[[#This Row],[Import imputable a la subvenció municipal]],DespesesProjecte[[#This Row],[Import de l''aportació / Cofinançament de l''organització]])","v":0},null,null,null,null,0]
["I9.  Subministraments ",{"$f":"SUM(B103:B105)","v":0},{"$f":"SUM(C103:C105)","v":0},{"$f":"SUM(DespesesProjecte[[#This Row],[Import imputable a la subvenció municipal]],DespesesProjecte[[#This Row],[Import de l''aportació / Cofinançament de l''organització]])","v":0},null,null,{"$f":"SUM(G103:G105)","v":0},{"$f":"SUM(H103:H105)","v":0},0]
[null,null,null,{"$f":"SUM(DespesesProjecte[[#This Row],[Import imputable a la subvenció municipal]],DespesesProjecte[[#This Row],[Import de l''aportació / Cofinançament de l''organització]])","v":0},null,null,null,null,0]
[null,null,null,{"$f":"SUM(DespesesProjecte[[#This Row],[Import imputable a la subvenció municipal]],DespesesProjecte[[#This Row],[Import de l''aportació / Cofinançament de l''organització]])","v":0},null,null,null,null,0]
[null,null,null,{"$f":"SUM(DespesesProjecte[[#This Row],[Import imputable a la subvenció municipal]],DespesesProjecte[[#This Row],[Import de l''aportació / Cofinançament de l''organització]])","v":0},null,null,null,null,0]
["I10.  Treball realitzat per altres empreses, parcialment imputables al projecte (neteja, seguretat...)",{"$f":"SUM(B107:B109)","v":0},{"$f":"SUM(C107:C109)","v":0},{"$f":"SUM(DespesesProjecte[[#This Row],[Import imputable a la subvenció municipal]],DespesesProjecte[[#This Row],[Import de l''aportació / Cofinançament de l''organització]])","v":0},null,null,{"$f":"SUM(G107:G109)","v":0},{"$f":"SUM(H107:H109)","v":0},0]
[null,null,null,{"$f":"SUM(DespesesProjecte[[#This Row],[Import imputable a la subvenció municipal]],DespesesProjecte[[#This Row],[Import de l''aportació / Cofinançament de l''organització]])","v":0},null,null,null,null,0]
[null,null,null,{"$f":"SUM(DespesesProjecte[[#This Row],[Import imputable a la subvenció municipal]],DespesesProjecte[[#This Row],[Import de l''aportació / Cofinançament de l''organització]])","v":0},null,null,null,null,0]
[null,null,null,{"$f":"SUM(DespesesProjecte[[#This Row],[Import imputable a la subvenció municipal]],DespesesProjecte[[#This Row],[Import de l''aportació / Cofinançament de l''organització]])","v":0},null,null,null,null,0]
["TOTAL DESPESES INDIRECTES (es podran assignar al projecte subvencionable fent sevir un percentatge d’assignació) - Màxim 10% de l’import imputable a la subvenció municipal",{"$f":"SUM(B70,B74,B78,B82,B86,B90,B94,B98,B102,B106)","v":0},{"$f":"SUM(C70,C74,C78,C82,C86,C90,C94,C98,C102,C106)","v":0},{"$f":"SUM(D70,D74,D78,D82,D86,D90,D94,D98,D102,D106)","v":0},null,null,{"$f":"SUM(G70,G74,G78,G82,G86,G90,G94,G98,G102,G106)","v":0},{"$f":"SUM(H70,H74,H78,H82,H86,H90,H94,H98,H102,H106)","v":0},{"$f":"SUM(I70,I74,I78,I82,I86,I90,I94,I98,I102,I106)","v":0},{"$f":"+IF(G110>H13*0.1,\"ALERTA: Màxim 10% de l'import imputable a la subvenció municipal\", \" \")","v":" "}]
["TOTAL DE DESPESES PREVISTES",{"$f":"B69+B110","v":0},{"$f":"C69+C110","v":0},{"$f":"D69+D110","v":0},null,null,{"$f":"G69+G110","v":0},{"$f":"H69+H110","v":0},{"$f":"I69+I110","v":0}]
[]
[]
[]
[]
[]
[]
[]
["Modalitat Bb. Creació, desenvolupament i enfortiment d'ecosistemes cooperatius i clústers d'ESS"]
["Submodalitat Bb1. Disseny i preparació"]
["1.  La quantia de la subvenció atorgada no superarà el 80% de la despesa total del projecte a subvencionar. "]
["2. L'import màxim de subvenció per a aquesta submodalitat de l'àmbit temàtic de Reactivació: Intercooperació (Bb1) és 15.000€. \n"]
["3. Les persones sol·licitants han d'escollir una o altra submodalitat (Bb1 o Bb2) en la seva sol·licitud de subvenció: No és possible presentar-ne a les dues."]
["4.  En el cas que la sol·licitud presentada sobrepassi l’import màxim, es considerarà com a import sol·licitat el màxim de l'establert a la convocatòria."]
["5. En aquesta modalitat s'acceptarà la imputació de despeses de personal propi i directament vinculat al projecte de les organitzacions participants de l'acord d'intercooperació"]
["6.  Es limita amb un màxim del 40% l'import de la subvenció atorgada per  a despeses de personal propi assignat directament al projecte subvencionat (retribucions i seguretat social- règim general o autònoms)"]
["7. Les despeses de lloguer d'immobles es limiten a un màxim del 25% si es tracta d'un NOU espai físic necessari pel desenvolupament del projecte subvencionable. En el cas de lloguers d'immobles que no són nous o no relacionats directament amb el desenvolupament del projecte de creació d'un nou hub o ecosistema a la ciutat de Barcelona, aquestes despeses de lloguer s'imputaran a les despeses indirectes amb el límit establert per aquestes"]
["8. En aquesta submodalitat són subvencionables també els treballs del grups cooperatius i els acords de cooperació de les organitzacions agrupades que dissenyin projectes per intentar obtenir finançament dels fons Next Generation de l’UE o similars que puguin aparèixer en el marc dels fons públics per la reactivació i transformació del model econòmic. (si fos la proposta presentada inicialment)"]
["9. La submodalitat “Bb1 Disseny i preparació” dóna suport als treballs de preparació i disseny durant la present convocatòria  2023 per a projectes que es vulguin desenvolupar durant les anualitats 2024 i 2025. Es treballarà, en el possible suport financer d’aquests projectes d’intercooperació , en el marc de l’Estratègia ESS 2030 BCN i el nou PIESS 2021-2023."]
["10. Els projectes d'aquesta submodalitat hauran de lliurar a la seva finalització un producte comunicatiu, d'acord amb el contingut establert a la convocatòria de la subvenció."]
["11. Són imputables en aquesta modalitat les despeses indirectes, detallades en l’apartat 13.3. de les bases reguladores; amb un màxim del 10% de l'import de la subvenció.\nEl caràcter subvencionable de la despesa d'amortització estarà subjecte a les condicions següents:\n> Que les subvencions no hagin contribuït a la compra dels béns.\n> Que l'amortització es calculi de conformitat amb les normes de comptabilitat generalment acceptades.\n> Que el cost es refereixi al període subvencionable.\n\n"]
["12.  Quan s'hagi de fer despeses de més de 12.000 €, sense IVA, en el cas de prestacions de serveis, s'hauran d'incorporar tres pressupostos sol·licitats i argumentar el motiu de l'adjudicació en el cas de no ser la proposta més avantatjosa econòmicament"]
["13. No seran elegibles factures d'empreses emeses entre les organitzacions participants de l'acord d'intercooperació"]
["14. En cap cas es consideraran despeses subvencionables:\n> Els impostos indirectes quan siguin susceptibles de recuperació o compensació.\n> Les despeses d'inversió, incloses les adquisicions de béns mobles.\n> Les despeses realitzades amb data anterior a l'inici del projecte i data posterior a la finalització del projecte.\n> Altres despeses que s'indiquin a la convocatòria."]
["15. La retribució de les persones contractades en el marc del projecte subvencionat no pot ser inferior al Salari Mínim Interprofessional (SMI), ni a l'estipulada al corresponent conveni o marc normatiu de referència (punt 7 de les bases 2023: requisits dels projectes). "]
["16. Els materials produïts de difusió, estudis, informes o materials didàctics utilitzats, etc. en el cas de tractar-se de despesa elegible de la subvenció, hauran de tenir llicència Creative Commons -Compartir Igual- (share a like)  i no podrà tenir la condició –Sense Obres Derivades- (no derivate Works)."]
["17. Els projectes subvencionats han de fomentar activitats d'interès públic o social, les quals han de ser gratuïtes per a les persones participants o en cap cas el preu ha de suposar un obstacle per a la seva participació, buscant altres formes d'accés per a persones amb dificultats econòmiques. En el cas que hi hagi algun tipus de lucre, haurà de revertir en les pròpies activitats subvencionades."]
["18. L'Ajuntament de Barcelona i les seves entitats municipals en cap cas subvencionaran el mateix projecte, executat durant el mateix període, per cap altre procediment de concessió que no sigui el regulat per les bases reguladores."]
["19. El/la beneficiari/ària no podrà alterar en cap cas el destí de les subvencions concedides."]
["20. L'organització designada com a representant de l'agrupació serà plenament responsable del projecte davant l'Ajuntament respecte al compliment de les obligacions establertes en les bases reguladores, sense perjudici de la responsabilitat de les altres organitzacions sòcies de l'agrupació, tot sent-li d'aplicació els requisits previstos al punt 6.1 de les bases reguladores. "]
["21. En cap cas podran formar part de l'agrupació les organitzacions que hagin rebut altres subvencions per a l'execució del mateix projecte d'altres administracions públiques."]

{"sheet":"Resum Pressupost","index":2,"n_rows":34,"n_cols":11,"rows_kept":34,"cut":false,"hidden":false,"merged":[[26,6,26,7],[32,7,32,9],[6,9,7,9],[36,1,36,4],[20,2,21,2],[20,3,21,3],[20,4,21,4],[20,1,21,1],[1,2,1,7],[5,0,5,1],[3,0,3,8],[6,2,7,2],[6,0,7,1],[6,8,7,8],[6,6,7,7],[6,4,7,4],[6,3,7,3]]}
[]
[null,null,"Resum pressupost Modalitat Bb1"]
[]
["Subvencions de l'Ajuntament de Barcelona per a la reactivació i l'enfortiment de l'Economia Social i Solidària i el desenvolupament de projectes d'intercooperació que desenvolupen l'Estratègia #ESSBCN2030",null,null,null,null,null,null,null,null,"MODALITAT Bb1"]
[]
["DESPESES PREVISTES",null,null,null,null,null,"INGRESSOS PREVISTOS"]
["Despeses directes \n(aquelles que s'identifiquen directament amb el projecte)",null,"Previsió inicial cost total","Previsió reformulada cost total","Import imputat a la subvenció atorgada",null,"Ingressos previstos",null,"Previsió inicial ingrés total","Previsió reformulada ingrés total"]
[]
["Bb1","D1. Retribucions i seguretat social (règim general o règim d’autònoms) del personal propi  vinculat/da al projecte (màxim 40% subvenció)",{"$f":"+'Reformulació Pressupost Bb1'!D22","v":0},{"$f":"+'Reformulació Pressupost Bb1'!I22","v":0},{"$f":"+'Reformulació Pressupost Bb1'!G22","v":0},{"$f":"+IF(D9<0,\"No s'admeten valors negatius\",\"\")","v":""},"A.","Subvenció municipal (import sol·licitat a la instància/atorgat)"]
[null,"D2.  Treballs realitzats per professionals i empreses externes directament vinculades al projecte subvencionat",{"$f":"+'Reformulació Pressupost Bb1'!D28","v":0},{"$f":"+'Reformulació Pressupost Bb1'!I28","v":0},{"$f":"+'Reformulació Pressupost Bb1'!G28","v":0},null,"B.","Subvencions d'altres administracions",null,null,{"$f":"+IF(J10<0,\"No s'admeten valors negatius\",\"\")","v":""}]
[null,"D3.  Lloguer de béns mobles/ immobles directament vinculats al projecte subvencionable (màxim 25% subvenció en cas d'immobles per a un nou espai)",{"$f":"+'Reformulació Pressupost Bb1'!D32","v":0},{"$f":"+'Reformulació Pressupost Bb1'!I32","v":0},{"$f":"+'Reformulació Pressupost Bb1'!G32","v":0},{"$f":"+IF(D10<0,\"No s'admeten valors negatius\",\"\")","v":""},"C.","Subvencions d'ens privats",null,null,""]
[null,"D4.  Adquisició de materials i béns consumibles íntegrament imputables al projecte ",{"$f":"+'Reformulació Pressupost Bb1'!D36","v":0},{"$f":"+'Reformulació Pressupost Bb1'!I36","v":0},{"$f":"+'Reformulació Pressupost Bb1'!G36","v":0},{"$f":"+IF(D11<0,\"No s'admeten valors negatius\",\"\")","v":""},"D.","Recursos propis de l'organització aplicats al projecte"]
[null,"D5.  Transport – missatgeria imputables al projecte ",{"$f":"+'Reformulació Pressupost Bb1'!D40","v":0},{"$f":"+'Reformulació Pressupost Bb1'!I40","v":0},{"$f":"+'Reformulació Pressupost Bb1'!F40","v":0},null,"E.","Taquillatge"]
[null,"D6. Publicitat i propaganda de les activitats directament vinculades al projecte ",{"$f":"+'Reformulació Pressupost Bb1'!D44","v":0},{"$f":"+'Reformulació Pressupost Bb1'!I44","v":0},{"$f":"+'Reformulació Pressupost Bb1'!G44","v":0},null,"F.","Quotes d'inscripció"]
[null,"D7.  Allotjament i dietes, del personal contractat i voluntari, vinculats al projecte",{"$f":"+'Reformulació Pressupost Bb1'!D48","v":0},{"$f":"+'Reformulació Pressupost Bb1'!I48","v":0},{"$f":"+'Reformulació Pressupost Bb1'!G48","v":0},null,"G.","Venda de Productes"]
[null,"D8.  Ajuts al transport per als/les participants dels projectes en cas que sigui necessari de manera justificada",{"$f":"+'Reformulació Pressupost Bb1'!D52","v":0},{"$f":"+'Reformulació Pressupost Bb1'!I52","v":0},{"$f":"+'Reformulació Pressupost Bb1'!G52","v":0},null,"H","Publicitat i/o Esponsorització"]
[null," D9. Viatges i desplaçaments imputables a les activitats del projecte",{"$f":"+'Reformulació Pressupost Bb1'!D56","v":0},{"$f":"+'Reformulació Pressupost Bb1'!I56","v":0},{"$f":"+'Reformulació Pressupost Bb1'!G56","v":0},null,"I.","Altres ingressos"]
[null,"D10. Tributs, quan siguin abonats directament per la persona jurídica o física beneficiària",{"$f":"+'Reformulació Pressupost Bb1'!D60","v":0},{"$f":"+'Reformulació Pressupost Bb1'!I60","v":0},{"$f":"+'Reformulació Pressupost Bb1'!G60","v":0},null,null,"Total Ingressos",{"$f":"SUM(I9:I17)","v":0},{"$f":"SUM(J9:J17)","v":0}]
[null,"D11.  Altres despeses que de manera justificada puguin imputar-se directament al projecte subvencionable",{"$f":"+'Reformulació Pressupost Bb1'!D64","v":0},{"$f":"+'Reformulació Pressupost Bb1'!I64","v":0},{"$f":"+'Reformulació Pressupost Bb1'!G64","v":0}]
[null,"Total Despeses Directes   ",{"$f":"SUM(C9:C19)","v":0},{"$f":"SUM(D9:D19)","v":0},{"$f":"SUM(E9:E19)","v":0}]
[null,"Despeses indirectes (es podran assignar al projecte fent sevir un percentatge d’assignació) ","Previsió inicial cost total","Previsió reformulada cost total","Import imputat a la subvenció atorgada"]
[]
[null,"I.1 Personal de suport al projecte subvencionat (Nòmines i seguretat social)",{"$f":"+'Reformulació Pressupost Bb1'!D70","v":0},{"$f":"+'Reformulació Pressupost Bb1'!I70","v":0},{"$f":"+'Reformulació Pressupost Bb1'!G70","v":0}]
[null,"I.2  Assegurances",{"$f":"+'Reformulació Pressupost Bb1'!D74","v":0},{"$f":"+'Reformulació Pressupost Bb1'!I74","v":0},{"$f":"+'Reformulació Pressupost Bb1'!G74","v":0}]
[null,"I.3  Amortització",{"$f":"+'Reformulació Pressupost Bb1'!D78","v":0},{"$f":"+'Reformulació Pressupost Bb1'!I78","v":0},{"$f":"+'Reformulació Pressupost Bb1'!G78","v":0}]
[null,"I.4  Lloguer de béns immobles",{"$f":"+'Reformulació Pressupost Bb1'!D82","v":0},{"$f":"+'Reformulació Pressupost Bb1'!I82","v":0},{"$f":"+'Reformulació Pressupost Bb1'!G82","v":0},{"$f":"+IF(D25<0,\"No s'admeten valors negatius\",\"\")","v":""}]
[null,"I.5  Adquisició de materials i béns consumibles parcialment imputables al projecte",{"$f":"+'Reformulació Pressupost Bb1'!D86","v":0},{"$f":"+'Reformulació Pressupost Bb1'!I86","v":0},{"$f":"+'Reformulació Pressupost Bb1'!G86","v":0},null,"Ingressos menys despeses ",null,{"$f":"+I18-C34","v":0},{"$f":"+J18-D34","v":0}]
[null,"I.6  Manteniment d’edificis i/o instal·lacions",{"$f":"+'Reformulació Pressupost Bb1'!D90","v":0},{"$f":"+'Reformulació Pressupost Bb1'!I90","v":0},{"$f":"+'Reformulació Pressupost Bb1'!G90","v":0}]
[null,"I.7  Comunicacions (telèfon, correus, connexió a internet)",{"$f":"+'Reformulació Pressupost Bb1'!D94","v":0},{"$f":"+'Reformulació Pressupost Bb1'!I94","v":0},{"$f":"+'Reformulació Pressupost Bb1'!G94","v":0}]
[null,"I.8  Despeses financeres",{"$f":"+'Reformulació Pressupost Bb1'!D98","v":0},{"$f":"+'Reformulació Pressupost Bb1'!I98","v":0},{"$f":"+'Reformulació Pressupost Bb1'!G98","v":0},null,null,null,"% subvencionat inicialment",{"$f":"I9/C34","v":{"$error":"#DIV/0!"}}]
[null,"I.9  Subministraments ",{"$f":"+'Reformulació Pressupost Bb1'!D102","v":0},{"$f":"+'Reformulació Pressupost Bb1'!I102","v":0},{"$f":"+'Reformulació Pressupost Bb1'!G102","v":0}]
[null,"I.10  Treball realitzat per altres empreses, parcialment imputables al projecte subvencionable (neteja, seguretat...)",{"$f":"+'Reformulació Pressupost Bb1'!D106","v":0},{"$f":"+'Reformulació Pressupost Bb1'!I106","v":0},{"$f":"+'Reformulació Pressupost Bb1'!G106","v":0},null,null,null,"% subvencionat després de reformular",{"$f":"+J9/D34","v":{"$error":"#DIV/0!"}},"*"]
[null,"Total Despeses Indirectes (Màx. 10% subv)",{"$f":"SUM(C23:C32)","v":0},{"$f":"SUM(D23:D32)","v":0},{"$f":"SUM(E23:E32)","v":0},null,null,"*Aquest percentatge ha de ser igual o menor al percentatge subvencionat inicialment."]
[null,"Total Despeses ",{"$f":"+C20+C33","v":0},{"$f":"+D20+D33","v":0},{"$f":"+E20+E33","v":0}]